bitfinex/quotes_BTCUSD_20250102
["timestamp","ask_amount","ask_price","bid_price","bid_amount"]
[1735834290042,0.0162855,96449.0,96448.0,0.10598632]
[1735834290227,0.0092855,96449.0,96448.0,0.10498632]
[1735834290368,0.0072855,96449.0,96448.0,0.10498632]
[1735834290577,0.0162855,96449.0,96448.0,0.10598632]
[1735834291914,0.0162855,96449.0,96448.0,0.25598632]
[1735834293654,8.53e-05,96463.0,96462.0,0.207335]
[1735834293865,0.00057775,96463.0,96462.0,0.31132132]
[1735834294707,0.00957775,96463.0,96462.0,0.31232132]
[1735834296549,0.00957775,96463.0,96462.0,0.31332132]
[1735834297550,0.00957775,96463.0,96462.0,0.32353887]
[1735834300328,0.00957775,96463.0,96462.0,0.10598632]
[1735834300664,0.0163139,96463.0,96462.0,0.10598632]
[1735834301580,0.0073139,96463.0,96462.0,0.10498632]
[1735834301785,0.0073139,96463.0,96462.0,0.11398632]
[1735834302148,0.0073139,96463.0,96462.0,0.11298632]
[1735834302622,0.0083139,96463.0,96462.0,0.12098632]
[1735834302943,0.0083139,96463.0,96462.0,0.11198632]
[1735834303141,0.0073139,96463.0,96462.0,0.10398632]
[1735834303930,0.0083139,96463.0,96462.0,0.11298632]
[1735834304133,0.0913139,96463.0,96462.0,0.018]
[1735834304329,0.0903139,96463.0,96462.0,0.009]
[1735834304917,0.0913139,96463.0,96462.0,0.018]
[1735834305069,0.0913139,96463.0,96462.0,0.009]
[1735834305640,0.207335,96462.0,96445.0,0.000171]
[1735834305899,0.0913139,96463.0,96446.0,0.10398632]
[1735834306103,0.207367,96447.0,96446.0,0.10398632]
[1735834306455,0.2140903,96447.0,96446.0,0.10398632]
[1735834307097,0.0067233,96447.0,96446.0,0.10398632]
[1735834307478,0.001,96447.0,96446.0,0.11198632]
[1735834308181,0.002,96447.0,96446.0,0.13159083]
[1735834308592,0.001,96447.0,96446.0,0.12259083]
[1735834308759,0.001,96447.0,96446.0,0.12359083]
[1735834308961,0.002,96447.0,96446.0,0.30244147]
[1735834309199,0.001,96447.0,96446.0,0.50081047]
[1735834309604,0.00057775,96463.0,96462.0,0.207335]
[1735834309804,0.00057775,96463.0,96462.0,0.31132132]
[1735834311246,0.00157775,96463.0,96462.0,0.32032132]
[1735834311909,0.00157775,96463.0,96462.0,0.47032132]
[1735834312542,0.00257775,96463.0,96462.0,0.48951019]
[1735834313155,0.00157775,96463.0,96462.0,0.48051019]
[1735834313375,0.01057775,96463.0,96462.0,0.48151019]
[1735834313736,0.00957775,96463.0,96462.0,0.95447476]
[1735834313932,0.00957775,96463.0,96462.0,0.95547476]
[1735834314134,0.00687462,96463.0,96462.0,0.95547476]
[1735834314340,0.00687462,96463.0,96462.0,1.05547476]
[1735834314736,3e-07,96465.0,96463.0,0.3]
[1735834314940,0.1304,96495.0,96463.0,0.3]
[1735834314941,0.0804,96505.0,96481.0,0.557294]
[1735834315174,0.0002332,96482.0,96481.0,1.39266432]
[1735834315391,5.25e-05,96492.0,96491.0,0.2]
[1735834315593,5.25e-05,96492.0,96491.0,1.67084332]
[1735834315810,5.25e-05,96492.0,96491.0,1.67291932]
[1735834316047,5.25e-05,96492.0,96491.0,1.82291932]
[1735834316235,5.25e-05,96492.0,96491.0,2.39657999]
[1735834316458,5.25e-05,96492.0,96491.0,1.16241199]
[1735834316735,0.0070525,96492.0,96491.0,1.00128632]
[1735834317259,0.0070525,96492.0,96491.0,1.34419042]
[1735834317449,0.00565799,96492.0,96491.0,1.34419042]
[1735834317642,0.00565799,96492.0,96491.0,1.35461778]
[1735834317846,0.00565799,96492.0,96491.0,1.35561778]
[1735834318045,0.0469855,96523.0,96491.0,1.35561778]
[1735834318046,8.55e-05,96523.0,96514.0,0.1]
[1735834318310,8.55e-05,96523.0,96522.0,0.41119232]
[1735834318419,0.00023315,96523.0,96522.0,0.76119232]
[1735834318647,0.00023315,96523.0,96522.0,1.80075132]
[1735834318864,0.00023315,96523.0,96522.0,1.87826532]
[1735834319059,0.00023315,96523.0,96522.0,1.82576432]
[1735834319262,0.00023315,96523.0,96522.0,2.30774381]
[1735834319509,0.00023315,96523.0,96522.0,1.82576432]
[1735834319850,0.00023315,96523.0,96522.0,1.79527732]
[1735834320066,0.00023315,96523.0,96522.0,1.79627732]
[1735834320582,0.00023315,96523.0,96522.0,2.13755507]
[1735834320928,0.0002,96529.0,96528.0,0.1]
[1735834321135,0.0002,96529.0,96528.0,0.37698632]
[1735834321332,0.0002,96529.0,96528.0,0.25398632]
[1735834321534,0.0002,96529.0,96528.0,0.35398632]
[1735834322344,0.0002,96529.0,96528.0,0.35498632]
[1735834322797,0.0002,96529.0,96528.0,0.82878552]
[1735834323910,0.0002,96529.0,96528.0,0.25498632]
[1735834324433,0.078,96555.0,96529.0,0.357191]
[1735834324737,0.078,96555.0,96530.0,0.25398632]
[1735834326056,0.078,96555.0,96530.0,0.25498632]
[1735834326339,0.207154,96547.0,96530.0,0.10498632]
[1735834326904,0.207154,96547.0,96530.0,0.10598632]
[1735834327326,0.078,96555.0,96530.0,0.10398632]
[1735834327563,0.078,96555.0,96543.0,0.207159]
[1735834327763,0.078,96555.0,96545.0,0.10398632]
[1735834329457,0.078,96555.0,96545.0,0.10498632]
[1735834329663,0.078,96555.0,96546.0,0.41431]
[1735834329957,0.07814759,96555.0,96554.0,0.10398632]
[1735834330334,0.08303485,96555.0,96554.0,0.10398632]
[1735834330538,0.07814759,96555.0,96554.0,0.10398632]
[1735834330843,0.0830369,96555.0,96554.0,0.10398632]
[1735834331278,0.0840369,96555.0,96554.0,0.11298632]
[1735834332596,0.0830369,96555.0,96554.0,0.11298632]
[1735834332720,0.0840369,96555.0,96554.0,0.12198632]
[1735834332925,0.0840369,96555.0,96554.0,0.11298632]
[1735834333127,0.07914759,96555.0,96554.0,0.11298632]
[1735834333331,0.07914759,96555.0,96554.0,0.12198632]
[1735834333954,0.00114759,96555.0,96554.0,0.12198632]
[1735834335260,0.00114759,96555.0,96554.0,0.32912332]
[1735834336527,8.55e-05,96560.0,96554.0,0.32912332]
[1735834336829,0.00057737,96560.0,96559.0,0.10398632]
[1735834337664,0.0825,96567.0,96559.0,0.10398632]
[1735834337809,0.0825,96567.0,96560.0,0.31111132]
[1735834338011,0.0825,96567.0,96564.0,0.10398632]
[1735834338213,0.0825,96567.0,96566.0,0.10398632]
[1735834339207,0.0002,96569.0,96567.0,0.20711]
[1735834339457,0.0002,96569.0,96568.0,0.10398632]
[1735834341113,0.0012,96569.0,96568.0,0.35398632]
[1735834341366,0.0012,96569.0,96568.0,0.45398632]
[1735834341685,0.0012,96569.0,96568.0,0.45498632]
[1735834342331,0.0012,96569.0,96568.0,1.0450939]
[1735834342560,0.0012,96569.0,96568.0,1.0440939]
[1735834342748,0.0002,96569.0,96568.0,1.0440939]
[1735834342990,0.0002,96569.0,96568.0,1.0450939]
[1735834343466,0.0002,96569.0,96568.0,1.0210939]
[1735834343921,0.207029,96605.0,96591.0,0.207057]
[1735834344109,0.00014753,96605.0,96603.0,0.10398632]
[1735834344284,0.00514332,96604.0,96603.0,0.10398632]
[1735834345584,0.00514332,96604.0,96603.0,0.11298632]
[1735834346073,0.20703,96604.0,96603.0,0.11298632]
[1735834346860,0.20703,96604.0,96603.0,0.12198632]
[1735834347291,0.023,96601.0,96564.0,0.207114]
[1735834347501,0.207093,96575.0,96568.0,0.10398632]
[1735834347699,0.0456,96582.0,96568.0,0.10398632]
[1735834348115,0.0456,96582.0,96573.0,0.10398632]
[1735834348755,0.0456,96582.0,96573.0,0.10413385]
[1735834348969,0.0795,96580.0,96573.0,0.10413385]
[1735834349217,0.207084,96579.0,96573.0,0.10413385]
[1735834350238,0.207093,96575.0,96573.0,0.10413385]
[1735834351091,0.207086,96578.0,96573.0,0.10413385]
[1735834351293,0.207086,96578.0,96573.0,0.10513385]
[1735834351500,0.001,96575.0,96573.0,0.11313385]
[1735834351924,0.208094,96575.0,96573.0,0.12213385]
[1735834352154,0.001,96575.0,96573.0,0.11313385]
[1735834352561,0.001,96575.0,96573.0,0.12213385]
[1735834352755,0.001,96575.0,96573.0,0.11313385]
[1735834352931,0.0795,96580.0,96573.0,0.10413385]
[1735834353139,0.207084,96579.0,96573.0,0.11313385]
[1735834353339,0.414177,96577.0,96573.0,0.12213385]
[1735834353704,0.414177,96577.0,96573.0,0.11313385]
[1735834354141,0.414177,96577.0,96573.0,0.12213385]
[1735834354342,0.414177,96577.0,96573.0,0.11313385]
[1735834354540,0.414177,96577.0,96573.0,0.10413385]
[1735834354742,0.414177,96577.0,96573.0,0.11313385]
[1735834354943,0.415177,96577.0,96573.0,0.11313385]
[1735834355395,0.415177,96577.0,96573.0,0.12213385]
[1735834355593,0.415177,96577.0,96573.0,0.11313385]
[1735834355981,0.415177,96577.0,96573.0,0.12213385]
[1735834356189,0.414177,96577.0,96573.0,0.11313385]
[1735834356609,0.415177,96577.0,96573.0,0.12213385]
[1735834357337,0.414177,96577.0,96573.0,0.10413385]
[1735834357593,0.415177,96577.0,96573.0,0.11313385]
[1735834357794,0.415177,96577.0,96573.0,0.12213385]
[1735834357993,0.414177,96577.0,96573.0,0.10413385]
[1735834358449,0.414177,96577.0,96573.0,0.11313385]
[1735834359416,0.415177,96577.0,96573.0,0.12213385]
[1735834361229,0.415177,96577.0,96573.0,0.12230465]
[1735834361433,0.415177,96577.0,96573.0,0.01831833]
[1735834361604,0.3492,96574.0,96573.0,0.01831833]
[1735834361805,0.431825,96560.0,96534.0,0.09247613]
[1735834362016,0.454825,96560.0,96534.0,0.09247613]
[1735834362215,0.604825,96560.0,96534.0,0.09247613]
[1735834362421,0.253078,96535.0,96534.0,0.09247613]
[1735834362612,0.253078,96535.0,96534.0,0.092968]
[1735834362613,0.333978,96535.0,96534.0,0.092968]
[1735834362841,0.333978,96535.0,96534.0,0.19695432]
[1735834363047,0.333978,96535.0,96534.0,0.10447819]
[1735834363442,0.333978,96535.0,96534.0,0.00049187]
[1735834363864,0.333978,96535.0,96534.0,0.10447819]
[1735834364103,0.333978,96535.0,96534.0,0.11347819]
[1735834364303,0.334978,96535.0,96534.0,0.11347819]
[1735834364755,0.207133,96556.0,96535.0,0.357178]
[1735834364961,0.01621358,96565.0,96550.0,0.11137144]
[1735834365168,0.076,96567.0,96555.0,0.31112032]
[1735834365342,0.01054093,96577.0,96562.0,0.10398632]
[1735834365563,0.0757,96578.0,96563.0,0.207117]
[1735834365768,0.0757,96578.0,96564.0,0.10398632]
[1735834366389,0.0757,96578.0,96565.0,0.207114]
[1735834366589,0.207088,96577.0,96566.0,0.10398632]
[1735834366790,0.0757,96578.0,96566.0,0.10398632]
[1735834367009,0.0757,96578.0,96567.0,0.20711]
[1735834367289,0.0757,96578.0,96568.0,0.10398632]
[1735834367429,0.0847,96578.0,96568.0,0.10398632]
[1735834367834,0.0757,96578.0,96568.0,0.10398632]
[1735834368032,0.207067,96587.0,96573.0,0.207095]
[1735834368239,0.018,96578.0,96574.0,0.10398632]
[1735834368523,0.009,96578.0,96574.0,0.10398632]
[1735834368924,0.01,96578.0,96574.0,0.10398632]
[1735834369361,0.001,96578.0,96574.0,0.10398632]
[1735834369646,0.002,96578.0,96574.0,0.52717432]
[1735834369849,0.002,96578.0,96574.0,0.32008032]
[1735834370065,0.002,96578.0,96574.0,0.11298632]
[1735834370267,0.003,96578.0,96574.0,0.11298632]
[1735834370838,0.002,96578.0,96574.0,0.11298632]
[1735834371041,0.207088,96577.0,96574.0,0.12198632]
[1735834371244,0.207088,96577.0,96574.0,0.018]
[1735834371440,0.306092,96575.0,96574.0,0.018]
[1735834372255,0.306092,96575.0,96574.0,0.009]
[1735834372472,0.023,96574.0,96541.0,0.09247613]
[1735834372679,0.023,96574.0,96545.0,0.10398632]
[1735834373611,0.207133,96556.0,96545.0,0.10398632]
[1735834373819,0.207133,96556.0,96546.0,0.207155]
[1735834374027,0.207133,96556.0,96547.0,0.10398632]
[1735834374429,0.414293,96550.0,96547.0,0.10398632]
[1735834374626,0.207146,96550.0,96547.0,0.10398632]
[1735834374848,0.20715,96548.0,96547.0,0.10447819]
[1735834375378,0.20715,96548.0,96547.0,0.10547819]
[1735834375747,0.20715,96548.0,96547.0,0.10447819]
[1735834376853,0.20715,96548.0,96547.0,0.11347819]
[1735834377061,0.001,96548.0,96547.0,0.11347819]
[1735834377268,0.002,96548.0,96547.0,0.12147819]
[1735834377497,0.207142,96552.0,96547.0,0.10447819]
[1735834377883,0.002,96548.0,96547.0,0.12247819]
[1735834378083,0.002,96548.0,96547.0,0.11347819]
[1735834378286,0.002,96548.0,96547.0,0.12247819]
[1735834378429,0.003,96548.0,96547.0,0.12247819]
[1735834378633,0.002,96548.0,96547.0,0.11347819]
[1735834379137,0.001,96548.0,96547.0,0.11347819]
[1735834379352,0.002,96548.0,96547.0,0.12247819]
[1735834380517,0.001,96548.0,96547.0,0.11347819]
[1735834380724,0.001,96548.0,96547.0,0.12247819]
[1735834380896,0.002,96548.0,96547.0,0.12247819]
[1735834381099,0.001,96548.0,96547.0,0.11347819]
[1735834381461,0.20815,96548.0,96547.0,0.11347819]
[1735834382057,0.001,96548.0,96547.0,0.32063019]
[1735834382258,0.002,96548.0,96547.0,0.32963019]
[1735834382462,0.002,96548.0,96547.0,0.12247819]
[1735834386351,0.002,96548.0,96547.0,0.12264919]
[1735834390998,0.002,96548.0,96547.0,0.32980119]
[1735834395944,0.002,96548.0,96547.0,0.57980119]
[1735834396144,0.002,96548.0,96547.0,0.66160119]
[1735834396356,8.55e-05,96559.0,96558.0,0.457129]
[1735834396558,8.55e-05,96559.0,96558.0,0.56111532]
[1735834397882,8.55e-05,96559.0,96558.0,0.90434]
[1735834398179,0.0020855,96559.0,96558.0,0.90534]
[1735834398524,0.0080855,96559.0,96558.0,0.90534]
[1735834398935,0.0080855,96559.0,96558.0,0.90156291]
[1735834399066,0.0020855,96559.0,96558.0,1.05136291]
[1735834399266,0.0100855,96559.0,96558.0,1.43207091]
[1735834399472,0.0100855,96559.0,96558.0,1.03985552]
[1735834399902,0.0020855,96559.0,96558.0,0.83885552]
[1735834400100,0.0020855,96559.0,96558.0,0.69940793]
[1735834400302,0.0080855,96559.0,96558.0,0.69940793]
[1735834400623,0.0080855,96559.0,96558.0,1.21414793]
[1735834400824,0.0090855,96559.0,96558.0,1.17285893]
[1735834400984,0.0090855,96559.0,96558.0,1.17185893]
[1735834401199,0.0100855,96559.0,96558.0,1.17285893]
[1735834401397,0.0100855,96559.0,96558.0,1.70163194]
[1735834401595,8.55e-05,96559.0,96558.0,1.69963194]
[1735834401834,5e-07,96559.0,96558.0,1.80063194]
[1735834402032,5e-07,96559.0,96558.0,1.55118094]
[1735834402235,5e-07,96559.0,96558.0,1.59763457]
[1735834402594,0.0030005,96559.0,96558.0,1.59863457]
[1735834402790,8.55e-05,96578.0,96577.0,0.457088]
[1735834402999,8.55e-05,96578.0,96577.0,0.56107432]
[1735834403383,8.55e-05,96578.0,96577.0,0.59987432]
[1735834403947,0.0002127,96578.0,96577.0,0.59987432]
[1735834404148,0.0012127,96578.0,96577.0,0.60087432]
[1735834404391,0.0012127,96578.0,96577.0,0.59987432]
[1735834404582,0.0012127,96578.0,96577.0,0.69267528]
[1735834404800,0.0022127,96578.0,96577.0,0.69367528]
[1735834405216,0.0002127,96578.0,96577.0,0.69267528]
[1735834405382,0.0012127,96578.0,96577.0,0.69367528]
[1735834405804,0.0012127,96578.0,96577.0,0.60087432]
[1735834406228,0.0012127,96578.0,96577.0,0.57234559]
[1735834407023,0.0012127,96578.0,96577.0,0.57334559]
[1735834407024,0.0082127,96578.0,96577.0,0.57334559]
[1735834407726,0.0082127,96578.0,96577.0,0.47334559]
[1735834407932,0.0082127,96578.0,96577.0,0.5937968]
[1735834410954,0.0082127,96578.0,96577.0,0.4937968]
[1735834411774,0.0082127,96578.0,96577.0,0.47334559]
[1735834412187,0.0082127,96578.0,96577.0,0.46307432]
[1735834413457,0.0082127,96578.0,96577.0,0.56307432]
[1735834418914,0.0082127,96578.0,96577.0,0.66307432]
[1735834419210,0.0082127,96578.0,96577.0,0.83934432]
[1735834419592,0.0082127,96578.0,96577.0,0.66307432]
[1735834419793,0.0082127,96578.0,96577.0,0.91503832]
[1735834420074,0.0082127,96578.0,96577.0,0.66307432]
[1735834420255,0.0082127,96578.0,96577.0,1.01001732]
[1735834420851,0.0494,96609.0,96602.0,0.207035]
[1735834421011,0.0494,96609.0,96602.0,0.31102132]
[1735834421423,0.0785,96612.0,96602.0,0.31102132]
[1735834421646,7e-05,96614.0,96602.0,0.31102132]
[1735834421985,0.0010854,96603.0,96602.0,0.32002132]
[1735834422528,0.0020854,96603.0,96602.0,0.33316532]
[1735834423871,0.0020854,96603.0,96602.0,0.34327374]
[1735834426616,0.0020854,96603.0,96602.0,0.13623874]
[1735834429646,0.0020854,96603.0,96602.0,0.28623874]
[1735834429851,0.0020854,96603.0,96602.0,1.40237274]
[1735834430057,0.0020854,96603.0,96602.0,1.72074574]
[1735834430278,0.0020854,96603.0,96602.0,1.40647374]
[1735834430853,0.0020854,96603.0,96602.0,1.29441074]
[1735834431458,7e-05,96614.0,96613.0,0.1]
[1735834431658,0.00021745,96614.0,96613.0,0.35398632]
[1735834432754,0.01421745,96614.0,96613.0,0.35498632]
[1735834433176,0.00921745,96614.0,96613.0,0.35498632]
[1735834433585,0.01821745,96614.0,96613.0,0.35598632]
[1735834433999,0.00021745,96614.0,96613.0,0.35398632]
[1735834434209,0.00021745,96614.0,96613.0,0.35498632]
[1735834434419,0.00921745,96614.0,96613.0,0.35598632]
[1735834435024,0.00921745,96614.0,96613.0,0.35498632]
[1735834435431,0.00930285,96614.0,96613.0,0.35598632]
[1735834435636,0.00030285,96614.0,96613.0,0.35398632]
[1735834435841,0.00030285,96614.0,96613.0,0.45398632]
[1735834436054,8.55e-05,96620.0,96614.0,0.25]
[1735834436261,8.55e-05,96620.0,96619.0,0.25398632]
[1735834438074,8.55e-05,96620.0,96619.0,0.25498632]
[1735834438270,8.55e-05,96620.0,96619.0,0.34778728]
[1735834438516,8.55e-05,96620.0,96619.0,0.34878728]
[1735834439075,8.55e-05,96620.0,96619.0,0.34978728]
[1735834439274,8.55e-05,96620.0,96619.0,0.34878728]
[1735834439619,8.55e-05,96620.0,96619.0,0.25698632]
[1735834440031,8.55e-05,96620.0,96619.0,0.25598632]
[1735834440433,8.55e-05,96620.0,96619.0,0.25698632]
[1735834440812,8.55e-05,96620.0,96619.0,0.25498632]
[1735834441009,8.55e-05,96620.0,96619.0,0.25598632]
[1735834441209,8.55e-05,96620.0,96619.0,0.27621193]
[1735834441412,8.55e-05,96620.0,96619.0,0.75728054]
[1735834442574,8.55e-05,96620.0,96619.0,0.80368102]
[1735834443919,0.014489,96622.0,96620.0,0.15]
[1735834444120,0.014489,96622.0,96621.0,0.25398632]
[1735834445755,0.014489,96622.0,96621.0,0.25498632]
[1735834446900,0.014489,96622.0,96621.0,0.69566132]
[1735834447146,8.54e-05,96666.0,96621.0,0.69566132]
[1735834447147,0.0793,96655.0,96648.0,0.1]
[1735834447348,0.0459,96661.0,96648.0,0.35398632]
[1735834447606,0.00034742,96649.0,96648.0,0.35398632]
[1735834448745,0.00043282,96649.0,96648.0,0.35398632]
[1735834448953,0.00043282,96649.0,96648.0,0.37440536]
[1735834449155,0.00043282,96649.0,96648.0,0.37540536]
[1735834449556,0.00043282,96649.0,96648.0,0.49883536]
[1735834450650,0.00043282,96649.0,96648.0,0.50898618]
[1735834450917,0.00043282,96649.0,96648.0,0.50798618]
[1735834451158,0.00043282,96649.0,96648.0,0.73098618]
[1735834451359,0.00043282,96649.0,96648.0,0.73198618]
[1735834451585,8.54e-05,96666.0,96655.0,0.473]
[1735834451791,8.54e-05,96666.0,96665.0,0.1]
[1735834451966,8.54e-05,96666.0,96665.0,0.40398632]
[1735834452322,8.54e-05,96666.0,96665.0,1.07241432]
[1735834452527,8.54e-05,96666.0,96665.0,1.67761932]
[1735834452725,8.54e-05,96666.0,96665.0,1.58503932]
[1735834453421,8.54e-05,96666.0,96665.0,1.58603932]
[1735834454133,0.0495,96703.0,96673.0,0.25]
[1735834454331,0.0495,96703.0,96674.0,1.89844232]
[1735834454674,0.0495,96703.0,96674.0,1.99844232]
[1735834455301,0.0495,96703.0,96674.0,1.69784932]
[1735834455593,0.0495,96703.0,96674.0,2.36714932]
[1735834455739,0.0495,96703.0,96674.0,2.38835284]
[1735834456596,0.0495,96703.0,96674.0,2.38935284]
[1735834457031,0.00329919,96684.0,96683.0,0.1]
[1735834457206,0.00379049,96684.0,96683.0,0.35398632]
[1735834458380,0.00379049,96684.0,96683.0,0.37198632]
[1735834458580,0.00379049,96684.0,96683.0,0.77346732]
[1735834458805,0.00379049,96684.0,96683.0,0.84337832]
[1735834459463,0.00379049,96684.0,96683.0,0.83437832]
[1735834459674,0.00379049,96684.0,96683.0,0.82537832]
[1735834460103,0.00379049,96684.0,96683.0,0.82637832]
[1735834460700,0.00387579,96684.0,96683.0,0.82637832]
[1735834461267,0.00387579,96684.0,96683.0,0.46371032]
[1735834462020,0.000103,96707.0,96683.0,0.46371032]
[1735834462021,0.000103,96707.0,96688.0,0.45]
[1735834462239,0.00034733,96689.0,96688.0,0.55398632]
[1735834462758,0.000103,96707.0,96699.0,0.1]
[1735834462990,0.000103,96707.0,96699.0,0.35398632]
[1735834465118,0.000103,96707.0,96699.0,1.27640632]
[1735834465317,0.000103,96707.0,96699.0,1.41223432]
[1735834465517,0.000103,96707.0,96699.0,1.42123432]
[1735834465952,0.000103,96707.0,96699.0,1.45229873]
[1735834466159,0.000103,96707.0,96699.0,1.43429873]
[1735834466354,0.000103,96707.0,96702.0,0.15]
[1735834466553,0.000103,96707.0,96706.0,0.45398632]
[1735834466757,0.014489,96718.0,96716.0,0.1]
[1735834466954,0.014489,96718.0,96716.0,0.45398632]
[1735834467605,0.014489,96718.0,96716.0,3.08899332]
[1735834467810,0.014489,96718.0,96716.0,3.97931232]
[1735834468023,0.0787,96737.0,96728.0,0.35]
[1735834468222,0.0003473,96729.0,96728.0,0.65398632]
[1735834468578,0.0003473,96729.0,96728.0,2.23540632]
[1735834468797,0.0003473,96729.0,96728.0,2.29904332]
[1735834469119,0.0003473,96729.0,96728.0,1.59210832]
[1735834469318,0.0003473,96729.0,96728.0,1.60110832]
[1735834469538,7e-05,96745.0,96744.0,0.1]
[1735834469750,7e-05,96745.0,96744.0,0.35398632]
[1735834470764,7e-05,96745.0,96744.0,0.35998632]
[1735834471351,7e-05,96745.0,96744.0,0.37055206]
[1735834471720,7e-05,96745.0,96744.0,0.37955206]
[1735834472183,7e-05,96745.0,96744.0,0.37055206]
[1735834472353,0.0001553,96745.0,96744.0,0.39176938]
[1735834472579,0.0001553,96745.0,96744.0,0.38676938]
[1735834473075,0.0001553,96745.0,96744.0,0.38776938]
[1735834473239,0.0001553,96745.0,96744.0,0.38676938]
[1735834473459,0.0001553,96745.0,96744.0,0.38776938]
[1735834473670,0.0001553,96745.0,96744.0,0.53953738]
[1735834473872,0.0001553,96745.0,96744.0,0.73953738]
[1735834474332,0.0001553,96745.0,96744.0,0.73853738]
[1735834474883,0.0001553,96745.0,96744.0,0.73953738]
[1735834475056,0.0001553,96745.0,96744.0,0.73853738]
[1735834475213,0.0001553,96745.0,96744.0,0.73953738]
[1735834475817,0.0001553,96745.0,96744.0,0.74267338]
[1735834476019,0.0002,96769.0,96768.0,0.1]
[1735834476224,0.00034728,96769.0,96768.0,0.35398632]
[1735834477457,0.00034728,96769.0,96768.0,0.36298632]
[1735834477664,0.00034728,96769.0,96768.0,0.26298632]
[1735834477872,0.00034728,96769.0,96768.0,0.11298632]
[1735834478075,0.08054728,96769.0,96768.0,0.11298632]
[1735834478320,0.08054728,96769.0,96768.0,0.12198632]
[1735834478845,0.12954728,96769.0,96768.0,0.12198632]
[1735834479143,0.1156371,96769.0,96768.0,0.12198632]
[1735834479939,0.046,96768.0,96735.0,0.1]
[1735834480113,0.046,96768.0,96741.0,0.15]
[1735834480318,0.046,96768.0,96743.0,0.15]
[1735834480638,0.046,96768.0,96744.0,0.10398632]
[1735834482227,0.0826,96767.0,96744.0,0.10398632]
[1735834482548,0.0826,96767.0,96747.0,0.10398632]
[1735834482932,0.0499,96765.0,96747.0,0.10398632]
[1735834483140,0.0499,96763.0,96747.0,0.10398632]
[1735834483340,0.0499,96761.0,96747.0,0.10398632]
[1735834483670,0.0759,96760.0,96747.0,0.10498632]
[1735834484014,0.0759,96760.0,96747.0,0.10398632]
[1735834484214,0.0759,96760.0,96747.0,0.10498632]
[1735834485448,0.0759,96760.0,96747.0,0.10398632]
[1735834485644,0.0769,96760.0,96747.0,0.11098632]
[1735834486052,0.0859,96760.0,96747.0,0.11198632]
[1735834486288,0.0859,96760.0,96747.0,0.11098632]
[1735834486662,0.0859,96760.0,96747.0,0.11298632]
[1735834488375,0.0832,96758.0,96747.0,0.11298632]
[1735834488575,0.1,96750.0,96747.0,0.009]
[1735834488797,0.131,96749.0,96735.0,0.00014728]
[1735834489000,0.0812,96748.0,96736.0,0.10398632]
[1735834489497,0.0812,96748.0,96747.0,0.009]
[1735834489745,0.0812,96748.0,96747.0,0.01]
[1735834489963,0.0812,96748.0,96747.0,0.001]
[1735834490171,0.0822,96748.0,96736.0,0.11298632]
[1735834490345,0.0822,96748.0,96736.0,0.11498632]
[1735834490762,0.0822,96748.0,96736.0,0.11298632]
[1735834491974,0.0822,96748.0,96747.0,0.002]
[1735834492164,0.0812,96748.0,96747.0,0.002]
[1735834492452,0.0812,96748.0,96736.0,0.10398632]
[1735834492651,0.0822,96748.0,96736.0,0.10498632]
[1735834493220,0.0822,96748.0,96747.0,0.001]
[1735834493549,0.0812,96748.0,96736.0,0.10398632]
[1735834493960,0.0852,96748.0,96736.0,0.10398632]
[1735834494503,0.1,96739.0,96735.0,0.00014728]
[1735834494710,0.2535,96736.0,96735.0,0.00014728]
[1735834496015,0.1305,96736.0,96735.0,0.00014728]
[1735834496735,0.14097813,96736.0,96735.0,0.00314728]
[1735834497076,0.14197813,96736.0,96735.0,0.00514728]
[1735834497503,0.14197813,96736.0,96735.0,0.00531808]
[1735834498368,0.14197813,96736.0,96735.0,0.00231808]
[1735834498586,0.14097813,96736.0,96735.0,0.00031808]
[1735834498776,0.14297813,96736.0,96735.0,0.00231808]
[1735834499051,0.14397813,96736.0,96735.0,0.00231808]
[1735834499435,0.14097813,96736.0,96735.0,0.00031808]
[1735834499643,0.14197813,96736.0,96735.0,0.00231808]
[1735834499770,0.1335,96736.0,96735.0,0.00231808]
[1735834500217,0.1315,96736.0,96735.0,0.00231808]
[1735834500845,0.24954,96736.0,96735.0,0.00231808]
[1735834501159,0.12654,96736.0,96735.0,0.00231808]
[1735834501363,0.12654,96736.0,96735.0,0.1063044]
[1735834501589,0.12854,96736.0,96735.0,0.1063044]
[1735834501989,0.003,96736.0,96735.0,0.1043044]
[1735834502215,0.002,96736.0,96735.0,0.1043044]
[1735834502418,0.001,96736.0,96735.0,0.1063044]
[1735834502976,0.0471,96748.0,96735.0,0.1073044]
[1735834503183,0.0471,96748.0,96736.0,0.10254337]
[1735834503803,0.023,96746.0,96736.0,0.10254337]
[1735834504005,0.123,96746.0,96735.0,0.00331808]
[1735834504217,0.123,96746.0,96735.0,0.00531808]
[1735834504425,0.023,96746.0,96735.0,0.00531808]
[1735834504828,0.023,96746.0,96735.0,0.00231808]
[1735834505044,0.123,96746.0,96735.0,0.00231808]
[1735834505402,0.123,96746.0,96735.0,0.00031808]
[1735834505603,0.123,96746.0,96735.0,0.00131808]
[1735834505828,0.124,96746.0,96736.0,0.002]
[1735834506305,0.123,96746.0,96735.0,0.00131808]
[1735834506510,0.1,96742.0,96735.0,0.00031808]
[1735834506807,0.001,96746.0,96736.0,0.10398632]
[1735834507550,0.0813,96747.0,96736.0,0.10398632]
[1735834508400,0.0813,96747.0,96746.0,0.206726]
[1735834509586,0.0823,96747.0,96746.0,0.210726]
[1735834509787,0.001,96747.0,96746.0,0.210726]
[1735834510582,0.0010855,96747.0,96746.0,0.210726]
[1735834511794,0.0010855,96747.0,96746.0,0.004]
[1735834513201,0.7653955,96747.0,96746.0,0.004]
[1735834513390,0.9721195,96747.0,96746.0,0.004]
[1735834513586,1.14326395,96747.0,96746.0,0.004]
[1735834513796,1.24326395,96747.0,96746.0,0.004]
[1735834514196,0.7923955,96747.0,96746.0,0.004]
[1735834514506,0.6423955,96747.0,96746.0,0.004]
[1735834515341,0.5946955,96747.0,96746.0,0.004]
[1735834518002,0.5946955,96747.0,96746.0,0.10798632]
[1735834518003,0.5178955,96747.0,96746.0,0.10798632]
[1735834520126,0.5178955,96747.0,96746.0,0.004]
[1735834521041,0.7246195,96747.0,96746.0,0.004]
[1735834522072,0.5178955,96747.0,96746.0,0.004]
[1735834522270,0.7246195,96747.0,96746.0,0.004]
[1735834524495,0.5178955,96747.0,96746.0,0.004]
[1735834525716,0.5178955,96747.0,96746.0,0.10798632]